{"text_format":"1","workbook":"xlsx","n_sheets":6,"sheets":["Do Komendanta","ogłoszenie","Oferta","Protokół","załacznik nr 1","ROZSTRZYGNIĘCIE"],"not_rendered":{"charts":0,"images":0,"macros":0,"external_links":0,"defined_names":8,"comments":0,"pivot_tables":0},"unopened":[],"bounds":{"document_bytes":16777216,"sheet_cells":100000,"rows_first":2000,"rows_last":500,"rows_between":2000,"halvings":0,"cell_chars":16384,"cell_head_chars":4096},"cells_cut":0,"cells_raw":0,"read":"whole","date_system":"1900"}

{"sheet":"Do Komendanta","index":0,"n_rows":43,"n_cols":16,"rows_kept":43,"cut":false,"hidden":false,"merged":[[0,0,0,3],[1,0,1,3],[2,0,2,3],[4,0,4,6],[5,0,5,6],[33,0,33,6],[34,0,34,6],[36,1,36,3],[36,5,36,6],[38,1,38,3],[38,5,38,6],[39,5,39,6],[40,1,40,3],[40,5,40,6],[41,5,41,6],[42,1,42,3],[42,5,42,6],[44,5,44,6]]}
["ZATWIERDZAM",null,null,null,null,null,"Szczecin, 27.11.2024r"]
["………………………………………",null,null,null,null,null,"(miejscowość, data)"]
["(podpis kierownika jednostki organizacyjnej Policji/ osoby upoważnionej)"]
[]
["WYKAZ SPRZĘTU TRANSPORTOWEGO ZBĘDNEGO LUB ZUŻYTEGO\nPRZEZNACZONEGO DO DALSZEGO ZAGOSPODAROWANIA"]
["Na   podstawie  przepisów   rozporządzenia  Rady  Ministrów  z  dnia  21  października  2019  r.\nw    sprawie    szczegółowego    sposobu   gospodarowania  składnikami  rzeczowymi  majątku\nruchomego Skarbu Państwa (Dz.U. z 2023 r. poz. 2303 i 2678), komisja przedkłada wykaz\nsprzętu transportowego uznany za zbędny/zużyty."]
["LP","Marka i typ pojazdu","Rok produkcji","Numer wewnętrzny","Sprzęt\nzbędny/zużyty","Propozycja sposobu\nzagospodarowania","UWAGI","WARTOŚĆ SPRZĘTU/\nCENA WYWOŁAWCZA","CENA WYWOŁAWCZA W II PRZETARGU","NR REJ.","UWAGI-ROZLICZONY","ROZLICZONY","DATA \nPIERWSZEJ \nREJESTRACJI","VIN","POJEMNOŚĆ","PRZEBIEG"]
[1,"FORD FOCUS",2005,5045,"zużyty","sprzedaż","       Pojzad niesprawny        SWT Koszalin",1700,{"$f":"H8*0.8","v":1360},"ZK 27899",null,"NIE","2005-12-21","WF05XXGCD55U45230",1596,247431]
[2,"FIAT STILO",2006,5082,"zużyty","sprzedaż","       Pojzad niesprawny        SWT Koszalin",1700,{"$f":"H9*0.8","v":1360},"ZPL 81FV",null,"NIE","2006-12-07","ZFA19200000651308",1598,202176]
[3,"FIAT DUCATO",2008,5208,"zużyty","sprzedaż","       Pojzad niesprawny        SWT Koszalin",6100,{"$f":"H10*0.8","v":4880},"ZKL 29LA",null,"NIE","2008-12-09","ZFA25000001559856",2999,262476]
[4,"FIAT DUCATO",2008,5210,"zużyty","sprzedaż","       Pojzad niesprawny        SWT Koszalin",5700,{"$f":"H11*0.8","v":4560},"ZWA 51CK",null,"NIE","2008-12-09","ZFA25000001547596",2999,221037]
[5,"FIAT DUCATO",2008,5375,"zużyty","sprzedaż","       Pojzad niesprawny        SWT Koszalin",7400,{"$f":"H12*0.8","v":5920},"HPW A567",null,"NIE","2009-02-23","ZFA25000001593746",2999,381947]
[6,"HONDA CBF 1000A",2010,5682,"zużyty","sprzedaż","       Pojzad niesprawny        SWT Koszalin",10000,{"$f":"H13*0.8","v":8000},"HPW M010",null,"NIE","2011-03-02","ZDCSC58B0AF412603",2010,86419]
[7,"FIAT BRAWO 1,9 ON",2009,5468,"zużyty","sprzedaż","       Pojzad niesprawny        SWT Koszalin",3700,{"$f":"H14*0.8","v":2960},"ZSZ 53FC",null,"NIE","2009-06-09","ZFA19800004214172",1910,198352]
[8,"FIAT DUCATO",2009,5471,"zużyty","sprzedaż","       Pojzad niesprawny        SWT Koszalin",5300,{"$f":"H15*0.8","v":4240},"HPW02WA",null,"TAK","2009-06-10","ZFA25000001631115",2999,410727]
[9,"FIAT DUCATO",2009,5474,"zużyty","sprzedaż","       Pojzad niesprawny        SWT Koszalin",6400,{"$f":"H16*0.8","v":5120},"HPW51WA",null,"TAK","2009-06-10","ZFA25000001632524",2999,402052]
[10,"KIA CEE'D 1,6",2013,5803,"zużyty","sprzedaż","       Pojzad niesprawny        SWT Koszalin",11500,{"$f":"H17*0.8","v":9200},"HPW A858",null,"NIE","2013-12-05","U5YHM813AEL072410",1591,296741]
[11," PRZYCZEPA WIOLA W-600",2009,5661,"zbędny","sprzedaż","       Pojzad niesprawny        SWT Koszalin",3200,{"$f":"H18*0.8","v":2560},"HPW A680",null,"TAK","2010-01-06","SUC075A0F90011170","BRAK","BRAK"]
[12," PRZYCZEPA WIOLA W-598",2009,5655,"zbędny","sprzedaż","       Pojzad niesprawny        SWT Koszalin",3200,{"$f":"H19*0.8","v":2560},"HPW A531",null,"TAK","2010-01-06","SUC075A0F90011173","BRAK","BRAK"]
[13," PRZYCZEPA WIOLA W-599",2009,5657,"zbędny","sprzedaż","       Pojzad niesprawny        SWT Koszalin",3200,{"$f":"H20*0.8","v":2560},"HPW A441",null,"TAK","2010-01-06","SUC075A0F90011172","BRAK","BRAK"]
[14,"WV T -4 ",2001,4585,"zużyty","sprzedaż","       Pojzad niesprawny        SWT Koszalin",10200,{"$f":"H21*0.8","v":8160},"HPW A251",null,"NIE","2001-02-23","WV1ZZZ7071X113933",2461,251160]
[15,"OPEL ASTRA 1,6",2004,5829,"zużyty","sprzedaż","       Pojzad niesprawny        SWT Szczecin",4300,{"$f":"H22*0.8","v":3440},"ZK 5718E",null,"TAK","2004-04-20","W0L0TGF484G049618",1598,184380]
[16,"KIA CEE'D",2009,5609,"zużyty","sprzedaż","       Pojzad niesprawny        SWT Szczecin",6500,{"$f":"H23*0.8","v":5200},"HPW A210",null,"TAK","2009-10-20","U5YFF52529L112353",1991,237117]
[17,"VW GOLF 1,4 TSI",2008,5181,"zużyty","sprzedaż","       Pojzad niesprawny        SWT Szczecin",7100,{"$f":"H24*0.8","v":5680},"ZS 1058X",null,"NIE","2008-05-12","WVWZZZ1KZ8P102366",1390,207395]
[18,"KIA CEE'D 2,0 ON",2009,5485,"zużyty","sprzedaż","       Pojzad niesprawny        SWT Szczecin",5900,{"$f":"H25*0.8","v":4720},"ZSL 56EP",null,"NIE","2009-06-16","U5YFF2U529L169672",1991,177389]
[19,"FIAT BRAWO 1,9 ON",2010,5413,"zużyty","sprzedaż","       Pojzad niesprawny        SWT Szczecin",7700,{"$f":"H26*0.8","v":6160},"ZGR 13ES",null,"NIE","2009-03-20","ZFA19800004214134",1910,187293]
[20,"KIA CEE'D 2,0 ON",2008,5285,"zużyty","sprzedaż","       Pojzad niesprawny        SWT Szczecin",7900,{"$f":"H27*0.8","v":6320},"ZS 21648",null,"TAK","2009-01-06","U5YFF24529L160385",1991,310438]
[21,"KIA CEE'D 2,0 ON",2008,5280,"zużyty","sprzedaż","       Pojzad niesprawny        SWT Szczecin",9000,{"$f":"H28*0.8","v":7200},"ZST 93CV",null,"TAK","2009-01-07","U5YFF24529L160381",1991,247849]
[22,"FIAT DUCATO",2009,5392,"zużyty","sprzedaż","       Pojzad niesprawny        SWT Szczecin",9400,{"$f":"H29*0.8","v":7520},"HPW A188",null,"TAK","2009-02-24","ZFA25000001594520",2999,234835]
[23,"MITSHUBISHI COLT",2008,6683,"zużyty","sprzedaż","       Pojzad niesprawny        SWT Szczecin",4600,{"$f":"H30*0.8","v":3680},"BRAK",null,"TAK","BRAK","XMCXNZ36A9F009666",1499,228830]
[24,"KIA CEE'D 1,6",2015,5990,"zużyty","sprzedaż","       Pojzad niesprawny        SWT Szczecin",4400,{"$f":"H31*0.8","v":3520},"HPW A109",null,"NIE","2015-10-20","U5YHM813AGL155178",1591,184120]
[25,"KIA CEE'D 1,6",2015,5958,"zużyty","sprzedaż","       Pojzad niesprawny        SWT Szczecin",12800,{"$f":"H32*0.8","v":10240},"HPW A833",null,"NIE","2015-09-21","U5YHM813AGL152011",1591,309439]
[]
["Miejsce postoju sprzętu :\nStacja Obsługi nr 1 w Szczecinie ul. Wernyhory 5\nStacja Obsługi nr 2 w Koszalinie ul. Krakusa i Wandy 11"]
[]
[]
[null,null,null,null,null,"Podpisy członków komisji:"]
[]
[null,null,null,null,null,"1) ………………………………………"]
[]
[null,null,null,null,null,"2) ………………………………………"]
[]
[null,null,null,null,null,"3) ………………………………………"]

{"sheet":"ogłoszenie","index":1,"n_rows":41,"n_cols":9,"rows_kept":41,"cut":false,"hidden":false,"merged":[[0,0,0,8],[2,0,2,8],[3,0,3,8],[4,0,4,8],[5,0,5,8],[6,0,6,8],[28,0,28,8],[29,0,29,8],[31,0,31,8],[32,0,32,8],[33,0,33,8],[34,0,34,8],[36,0,36,8],[37,0,37,8],[39,0,39,8],[40,0,40,8]]}
["OGŁOSZENIE O PRZETARGU PUBLICZNYM\n(zagospodarowanie poprzez sprzedaż)"]
[]
["1) Nazwa i siedziba jednostki:"]
["Komenda Wojewódzka Policji w Szczecinie Małopolska 47, 70-515 Szczecin."]
["2) Miejsce i termin przeprowadzenia przetargu publicznego:"]
["Wydział Transportu Komendy Wojewódzkiej Policji w Szczecinie, 71-540 Szczecin, ul. Wernyhory 5. \nTermin: 30 stycznia 2025 roku o godzinie 10:00 pokój nr 1."]
["3) Rodzaj, typy i ilość składników rzeczowych majątku ruchomego, będących przedmiotem sprzedaży:"]
["LP","MARKA I TYP POJAZDU","ROK \nPROD.","NR \nWEW.","VIN","POJEMNOŚĆ","PRZEBIEG","UWAGI","WARTOŚĆ SPRZĘTU/\nCENA WYWOŁAWCZA"]
[1,"FORD FOCUS",2005,5045,"ZK 27899",1596,247431,"         Pojzad                niesprawny        SWT Koszalin",1360]
[2,"FIAT STILO",2006,5082,"ZPL 81FV",1598,202176,"         Pojzad                niesprawny        SWT Koszalin",1360]
[3,"HONDA CBF 1000A",2010,5682,"HPW M010",2010,86419,"         Pojzad                niesprawny        SWT Koszalin",8000]
[4,"FIAT BRAWO 1,9 ON",2009,5468,"ZSZ 53FC",1910,198352,"         Pojzad                niesprawny        SWT Koszalin",2960]
[5,"KIA CEE'D 1,6",2013,5803,"HPW A858",1591,296741,"         Pojzad                niesprawny        SWT Koszalin",9200]
[6," PRZYCZEPA WIOLA W-600",2009,5661,"HPW A680",null,null,"         Pojzad                niesprawny        SWT Koszalin",2560]
[7," PRZYCZEPA WIOLA W-598",2009,5655,"HPW A531",null,null,"         Pojzad                niesprawny        SWT Koszalin",2560]
[8," PRZYCZEPA WIOLA W-599",2009,5657,"HPW A441",null,null,"         Pojzad                niesprawny        SWT Koszalin",2560]
[9,"WV T -4 ",2001,4585,"HPW A251",2461,251160,"         Pojzad                niesprawny        SWT Koszalin",8160]
[10,"OPEL ASTRA 1,6",2004,5829,"ZK 5718E",1598,184380,"         Pojzad                niesprawny        SWT Szczecin",3440]
[11,"KIA CEE'D",2009,5609,"HPW A210",1991,237117,"         Pojzad                niesprawny        SWT Szczecin",5200]
[12,"VW GOLF 1,4 TSI",2008,5181,"ZS 1058X",1390,207395,"         Pojzad                niesprawny        SWT Szczecin",5680]
[13,"KIA CEE'D 2,0 ON",2009,5485,"ZSL 56EP",1991,177389,"         Pojzad                niesprawny        SWT Szczecin",4720]
[14,"FIAT BRAWO 1,9 ON",2010,5413,"ZGR 13ES",1910,187293,"         Pojzad                niesprawny        SWT Szczecin",6160]
[15,"KIA CEE'D 2,0 ON",2009,5285,"ZS 21648",1991,310438,"         Pojzad                niesprawny        SWT Szczecin",6320]
[16,"KIA CEE'D 2,0 ON",2008,5280,"ZST 93CV",1991,247849,"         Pojzad                niesprawny        SWT Szczecin",9000]
[17,"MITSHUBISHI COLT",2009,6683,"BRAK",1499,228830,"         Pojzad                niesprawny        SWT Szczecin",3680]
[18,"KIA CEE'D 1,6",2015,5990,"HPW A109",1591,184120,"         Pojzad                niesprawny        SWT Szczecin",3520]
[19,"KIA CEE'D 1,6",2015,5958,"HPW A833",1591,309439,"         Pojzad                niesprawny        SWT Szczecin",10240]
[]
["4) Miejsce i termin, w którym można obejrzeć składniki rzeczowe majątku ruchomego, będące przedmiotem sprzedaży:"]
["Wydział Transportu Komendy Wojewódzkiej Policji w Szczecinie: Sekcja Wsparcia Technicznego w Szczecinie    , 71-240 Szczecin ul. Wernyhory 5 oraz Sekcja Wsparcia Technicznego w Koszalinie, 75-078 Koszalin ul. Krakusa i Wandy 11, wyłącznie w dniach 28-29 stycznia 2025 roku w godzinach od 8.00 do 15.00. Istnieje możliwość skorzystania z policyjnego zaplecza obsługowo-naprawczego w przypadku konieczności obejrzenia pojazdów bardziej szczegółowo. Wszelkich informacji dotyczących stanu technicznego i kompletności pojazdów można uzyskać od:\nKierownika sekcji wsparcia technicznego w Szczecinie -  Wydziału Transportu KWP w Szczecinie  Pana Jacka Tiede –  tel. 47-78-16-120, \nKierownika sekcji wsparcia technicznego w Koszalinie - Wydziału Transportu KWP w Szczecinie Pana Piotra Wnuka – tel. 47-78-41-797."]
[]
["5) Wysokość wadium oraz formę i termin jego wniesienia:"]
["Warunkiem przystąpienia do przetargu publicznego jest wpłacenie wadium tylko i wyłącznie w gotówce w wysokości 10% ceny wywoławczej składnika rzeczowego majątku ruchomego, będącego przedmiotem sprzedaży, najpóźniej w dniu przetargu przed jego rozpoczęciem poprzez dokonanie wpłaty na konto Komendy Wojewódzkiej Policji w Szczecinie Małopolska 47, 70-515 Szczecin o nr:                                                                                                        \n33 1010 1599 0025 0913 9120 0000    \n\nW dowodzie wpłaty winien być wpisany nr wewnętrzny sprzętu i nr pozycji z ogłoszenia, którego wadium dotyczy oraz dane: Imię i nazwisko, dokładny adres, nr telefonu, a w przypadku firmy także nazwę i NIP. \nDo każdej pozycji z ogłoszenia wymagany jest osobny dowód wpłaty. Komisja przetargowa przed przystąpieniem do przetargu publicznego sprawdza wniesienie wymaganego wadium na podstawie przedłożonych dowodów wpłaty (konieczne jest dostarczenie kopii, które Komisja zatrzymuje w dniu przetargu).  W przypadku złożenia najkorzystniejszej oferty, należy wpłacić pozostałą kwotę nabycia na konto:                                                                                                     \n44 1010 1599 0025 0922 3100 0000  \n\nWpisując w tytule nr faktury wystawionej przez KWP w Szczecinie.\n"]
["6) Wymagania jakim powinna odpowiadać oferta, termin, miejsce jej złożenia:"]
["Wypełnioną i podpisaną ofertę składa się w zaklejonej kopercie. Koperta powinna być oznakowana: „OFERTA NA SPRZEDAŻ POJAZDÓW – NIE OTWIERAĆ PRZED 30.01.25 r. GODZ.10.10”. Wzór oferty określono w załączniku nr 1 do ogłoszenia.\nOfertę można składać od dnia umieszczenia ogłoszenia o przetargu publicznym w Biuletynie Informacji Publicznej do dnia 30 stycznia 2025 roku do godziny 9:30 w Wydziale Transportu Komendy Wojewódzkiej Policji w Szczecinie,        71-540 Szczecin ul. Wernyhory 5."]
[]
["7) Dodatkowe informacje:"]
["Wadium złożone przez oferentów, których oferty nie zostały wybrane lub zostały odrzucone, zwraca się w terminie 7 dni, odpowiednio od dnia dokonania wyboru lub odrzucenia oferty. \nWadium złożone przez nabywcę zalicza się na poczet ceny. Wadium nie podlega zwrotowi, w przypadku gdy oferent, który wygrał przetarg publiczny, uchyli się od zawarcia umowy Sprzedaży. Komisja przetargowa odrzuci ofertę, jeżeli została złożona po wyznaczonym terminie, w niewłaściwym miejscu lub przez oferenta, który nie wniósł wadium, nie zawiera danych i dokumentów, które zostały określone we wzorze oferty, są one niekompletne, nieczytelne lub budzą inną wątpliwość, zaś jej uzupełnienie lub złożenie wyjaśnień mogłoby prowadzić do uznania jej za nową ofertę. \nKomisja przetargowa zawiadamia niezwłocznie oferenta o odrzuceniu oferty.\nPrzetarg publiczny może się odbyć, jeżeli zostanie złożona co najmniej jedna oferta. Komisja przetargowa wybiera oferenta, który zaoferował najwyższą cenę.\nOrganizatorowi przetargu publicznego przysługuje prawo zamknięcia tego przetargu bez wybrania którejkolwiek z ofert, bez podania przyczyn.\nNabywca zobowiązany jest zapłacić cenę nabycia (różnicę pomiędzy wpłaconym wadium, a ceną wskazaną w ofercie) niezwłocznie, jednak nie później niż w ciągu 7 dni od dnia zawarcia umowy sprzedaży. \nWydanie przedmiotu sprzedaży następuje niezwłocznie po zapłaceniu przez nabywcę ceny nabycia lecz nie wcześniej niż po zatwierdzeniu przez kierownika jednostki protokołu z przeprowadzonego przetargu publicznego.\nWszystkie pojazdy są wyrejestrowane i nie nadają się do bezpośredniego użytkowania, gdyż są one niesprawne i niekompletne."]
[]
["8) Podstawa prawna: "]
["Rozporządzenia Rady Ministrów z 19 lutego 2021 r (Dz. U. Z 2023 r. poz. 2303 i 2678) w sprawie szczegółowego sposobu gospodarowania składnikami rzeczowymi majątku ruchomego Skarbu Państwa"]

{"sheet":"Oferta","index":2,"n_rows":36,"n_cols":2,"rows_kept":36,"cut":false,"hidden":false,"merged":[[0,0,0,1],[6,0,6,1],[15,0,15,1]]}
["OFERTA PISEMNA ZŁOŻONA W TOKU PRZETARGU PUBLICZNEGO\n(zagospodarowanie poprzez sprzedaż)"]
[]
["Imię i nazwisko, dokładny adres, nr telefonu, adres e-mail,\na w przypadku firmy także nazwę i NIP"]
["Nr wewnętrzny sprzętu i nr pozycji z ogłoszenia, którego oferta dotyczy:"]
["Oferowana cena w brutto i warunki jej zapłaty:\n"]
[]
["Oświadczam, że zapoznałam/łem się ze stanem składnika rzeczowego majątku ruchomego będącego przedmiotem przetargu publicznego. Ponoszę odpowiedzialność za skutki wynikające z rezygnacji z zapoznania się ze stanem tego składnika."]
[]
["Zwrot wadium/ odsetek proszę wpłacic na konto………………………………………………..."]
[]
[]
[null,"………………………………………………………."]
[null,"Czytelny podpis oferenta"]
[]
["UWAGA: "]
["Wypełnioną i podpisaną ofertę składa się w zaklejonej kopercie w miejscu i terminie określonym w ogłoszeniu o przetargu publicznym."]
[]
[]
[]
[]
[]
[]
[]
[]
["Wydział Transportu Komendy Wojewódzkiej Policji w Szczecinie: Sekcja Wsparcia Technicznego w Szczecinie    , 71-240 Szczecin ul. Wernyhory 5 oraz Sekcja Wsparcia Technicznego w Koszalinie, 75-078 Koszalin ul. Krakusa i Wandy 11, wyłącznie w dniach 8-9 września  2024 roku w godzinach od 8.00 do 15.00. Istnieje możliwość skorzystania z policyjnego zaplecza obsługowo-naprawczego w przypadku konieczności obejrzenia pojazdów bardziej szczegółowo. Wszelkich informacji dotyczących stanu technicznego i kompletności pojazdów można uzyskać od:\nKierownika sekcji wsparcia technicznego w Szczecinie -  Wydziału Transportu KWP w Szczecinie  Pana Jacka Tiede –  tel. 47-78-16-120, \nKierownika sekcji wsparcia technicznego w Koszalinie - Wydziału Transportu KWP w Szczecinie Pana Piotra Wnuka – tel. 47-78-41-797."]
[]
[]
[]
[]
[]
[]
[]
[]
[]
[]
["Rozporządzenia Rady Ministrów z 19 lutego 2021 r (Dz. U. Z 2023 r. poz. 2303 i 2678) w sprawie szczegółowego sposobu gospodarowania składnikami rzeczowymi majątku ruchomego Skarbu Państwa"]

{"sheet":"Protokół","index":3,"n_rows":29,"n_cols":14,"rows_kept":29,"cut":false,"hidden":false,"merged":[[0,0,0,1],[2,0,2,13],[4,0,4,13],[10,0,10,8],[12,0,12,13],[13,0,13,13],[14,0,14,13],[15,0,15,13],[16,0,16,13],[18,0,18,13],[19,0,19,13],[20,9,20,13],[22,0,22,8],[22,9,22,13],[24,0,24,6],[24,9,24,13],[28,0,28,8],[28,9,28,13]]}
["OGŁOSZENIE O ROZSTRZYGNIĘCIU \nPRZETARGU PUBLICZNEGO Z DNIA\n………………\n(zagospodarowanie poprzez sprzedaż)"]
[]
["PROTOKÓŁ Z PRZEBIEGU PRZETARGU PUBLICZNEGO W CELU DOKONANIA SPRZEDAŻY \nZBĘDNYCH LUB ZUŻYTYCH SKŁADNIKÓW RZECZOWYCH MAJĄTKU RUCHOMEGO"]
[]
[" W dniu 07 października 2024 roku w Wydziale Transportu Komendy Wojewódzkiej Policji w Szczecinie, 71-540 Szczecin, ul. Wernyhory 5 o godzinie 10:00 pokój nr 1, komisja powołana Decyzją nr 95/2024 Komendanta Wojewódzkiego Policji w Szczecinie z dnia 26 kwietnia 2024 roku przeprowadziła przetarg publiczny na sprzedaż zbędnych lub zużytych składników rzeczowych majątku ruchomego na podstawie przepisów rozporządzenia Rady Ministrów z dnia 21.09.2019r w sprawie szczegółowego  sposobu    gospodarowania    składnikami    rzeczowymi   majątku ruchomego  Skarbu  Państwa   (Dz.U .  z 2023 r. poz. 2303 i 2678)"]
[]
["LP",null,null,null,"VIN","POJEMNOŚĆ","PRZEBIEG","UWAGI","WARTOŚĆ SPRZĘTU/\nCENA WYWOŁAWCZA","NAJWYŻSZA \nCENA ZAOFEROWANA ZA \nPRZEDMIOT \nSPRZEDAŻY ","WYSOKOŚĆ CENY NABYCIA","KWOTA, JAKĄ NABYWCA \nUIŚCIŁ NA POCZET CENY\n(WADIUM)","INFORMACJA O UISZCZENIU CENY NABYCIA W TERMINIE ZGONIE Z ART. 22 UST. 1 ROZPORZĄDZENIA","DANE\nNABYWCY PRZEDMIOTU W PRZETARGU PUBLICZNYM"]
["1.",null,null,null,null,null,null,null,null,null,null,null,"UISZCZONO"]
["2.",null,null,null,null,null,null,null,null,null,null,null,"UISZCZONO"]
["3.",null,null,null,null,null,null,null,null,null,null,null,"UISZCZONO"]
["RAZEM",null,null,null,null,null,null,null,null,{"$f":"SUM(J8:J10)","v":0},{"$f":"SUM(K8:K10)","v":0},{"$f":"SUM(L8:L10)","v":0}]
[]
["Wnioski i oświadczenia członków komisji przetargowej:"]
["Ogłoszenie o przetargu zostało umieszczone na stronie internetowej Biuletynu Informacji Publicznej Komendy Wojewódzkiej Policji w Szczecinie, zakładka – informacja o składnikach majątku."]
["W wyniku przeprowadzonego przetargu publicznego sprzedano……….środki transportu. Zestawienie ofert, które wpłynęły w odpowiedzi na ogłoszenie o przetargu publicznym zostało przedstawione w załączniku nr 1 do protokołu."]
["Nabywcy zostali poinformowani o 7 dniowym terminie finalizacji zakupu po otrzymaniu dowodu sprzedaży (faktury)."]
["W wyniku sprzedaży uzyskano kwotę: …………..zł."]
["Komisja proponuje podjąć próbę przeprowadzenia drugiego przetargu publicznego, obniżając cenę wywoławczą o 20% od pierwotnie określonej wartości sprzętu/ceny wywoławczej."]
["Imiona, nazwiska oraz podpisy składu komisji przetargowej:"]
["członkowie:"]
["a) Kinga Dulewicz- Kierownik sekcji eksploatacji",null,null,null,null,null,null,null,null,"………………………………………………………"]
[]
["b) Jacek Tiede – Kierownik sekcji wsparcia technicznego w Szczecinie",null,null,null,null,null,null,null,null,"………………………………………………………"]
[]
["c) Alina Smolińska- specjalista Wydziału Transportu",null,null,null,null,null,null,null,null,"………………………………………………………"]
["  "]
[]
[]
["b) Piotr Wnuk – Kierownik sekcji wsparcia technicznego w Koszalinie",null,null,null,null,null,null,null,null,"………………………………………………………"]

{"sheet":"załacznik nr 1","index":4,"n_rows":36,"n_cols":8,"rows_kept":36,"cut":false,"hidden":false,"merged":[[0,0,0,3],[1,0,1,3],[2,0,2,3],[5,0,5,7],[7,0,7,7],[26,1,26,3],[26,5,26,7],[29,1,29,3],[29,5,29,7],[31,5,31,7],[32,1,32,3],[32,5,32,7],[33,5,33,7],[35,1,35,3],[35,5,35,7],[38,5,38,7]]}
["OGŁOSZENIE O ROZSTRZYGNIĘCIU \nPRZETARGU PUBLICZNEGO Z DNIA\n………………\n(zagospodarowanie poprzez sprzedaż)",null,null,null,null,null,null,"Szczecin, dnia 08.10.2024r"]
["………………………………………",null,null,null,null,null,null,"(miejscowość, data)"]
["(podpis kierownika jednostki organizacyjnej Policji/ osoby upoważnionej)"]
[]
[]
["ZESTAWIENIE OFERT, KTÓRE WPŁYNEŁY W ODPOWIEDZI NA OGŁOSZENIE O PRZETARGU PUBLICZNYM"]
[]
["Na    podstawie    przepisów    rozporządzenia   Rady    Ministrów   z  dnia  21  października  2019  r. \nw     sprawie     szczegółowego     sposobu    gospodarowania    składnikami    rzeczowymi   majątku \nruchomego  Skarbu  Państwa   (Dz.U .  z 2023 r. poz. 2303 i 2678),  komisja  przedkłada zestawieni ofert z otwarcia"]
[]
[]
[]
["LP","MARKA I TYP POJAZDU","ROK \nPROD.","NR \nWEW.","Sprzęt\nzbędny/zużyty","Sposób\nzagospodarowania","Złożone oferty","Uwagi"]
[1,null,null,null,"zużyty","sprzedaż"]
[2,null,null,null,"zużyty","sprzedaż"]
["W wyniku przeprowadzonego przetargu publicznego sprzedano……….środki transportu. Zestawienie ofert, które wpłynęły w odpowiedzi na ogłoszenie o przetargu publicznym zostało przedstawione w załączniku nr 1 do protokołu.",null,null,null,"zużyty","sprzedaż"]
[4,null,null,null,"zużyty","sprzedaż"]
["W wyniku sprzedaży uzyskano kwotę: …………..zł.",null,null,null,"zużyty","sprzedaż"]
[6,null,null,null,"zużyty","sprzedaż"]
[7,null,null,null,"zużyty","sprzedaż"]
[8,null,null,null,"zużyty","sprzedaż"]
[9,null,null,null,"zużyty","sprzedaż"]
[10,null,null,null,"zużyty","sprzedaż"]
[11,null,null,null,"zużyty","sprzedaż"]
[12,null,null,null,"zużyty","sprzedaż"]
[]
[]
[null,null,null,null,null,"Podpisy członków komisji:"]
[]
[]
[null,null,null,null,null,"1) ………………………………………"]
[]
[]
[null,null,null,null,null,"2) ………………………………………"]
[]
[]
[null,null,null,null,null,"3) ………………………………………"]

{"sheet":"ROZSTRZYGNIĘCIE","index":5,"n_rows":17,"n_cols":4,"rows_kept":17,"cut":false,"hidden":false,"merged":[[0,0,0,3],[2,0,2,3]]}
["OGŁOSZENIE O ROZSTRZYGNIĘCIU \nPRZETARGU PUBLICZNEGO Z DNIA\n………………\n(zagospodarowanie poprzez sprzedaż)"]
[]
["Komenda Wojewódzka Policji w Szczecinie informuje, iż w przetargu publicznym dotyczącym zagospodarowania poprzez sprzedaż składników rzeczowych majątku ruchomego, najkorzystniejsze oferty \nna środki transportu zaoferowali:"]
[]
["LP","MARKA I TYP \nPOJAZDU","NR WEWNĘTRZNY","DANE\nOFERENTA Z NAJKORZYSTNIEJSZĄ OFERTĄ"]
[1]
[2]
[3]
[]
[]
[]
[]
[]
[]
["W wyniku przeprowadzonego przetargu publicznego sprzedano……….środki transportu. Zestawienie ofert, które wpłynęły w odpowiedzi na ogłoszenie o przetargu publicznym zostało przedstawione w załączniku nr 1 do protokołu."]
[]
["W wyniku sprzedaży uzyskano kwotę: …………..zł."]